bitfinex-derivatives/quotes_BTCF0:USTF0_20240815
["timestamp","ask_amount","ask_price","bid_price","bid_amount"]
[1723745525789,0.085967,58147.0,58146.0,0.05136029]
[1723745526089,0.001,58153.0,58143.0,0.08541564]
[1723745526289,0.001,58153.0,58152.0,0.13733647]
[1723745526593,0.086961,58151.0,58149.0,0.06850196]
[1723745526792,0.085969,58146.0,58145.0,0.05137884]
[1723745527095,0.51596,58145.0,58138.0,0.05138915]
[1723745527291,0.3608,58139.0,58134.0,0.05138915]
[1723745527493,0.3608,58139.0,58133.0,0.05137622]
[1723745527683,0.085986,58134.0,58133.0,0.05137622]
[1723745527881,0.085986,58134.0,58133.0,0.05137765]
[1723745528083,0.3608,58139.0,58133.0,0.3608]
[1723745528281,0.3608,58153.0,58138.0,0.06850196]
[1723745528501,0.085969,58146.0,58145.0,0.05135403]
[1723745528794,0.447759,58153.0,58143.0,0.06847204]
[1723745528795,0.085971,58145.0,58143.0,0.06847204]
[1723745528986,0.085971,58145.0,58142.0,0.06847204]
[1723745529183,0.085971,58145.0,58139.0,0.17139464]
[1723745529184,0.08597,58145.0,58139.0,0.17139464]
[1723745529391,0.3608,58142.0,58132.0,0.05135122]
[1723745529692,0.3608,58142.0,58129.0,0.06846778]
[1723745529693,0.3608,58133.0,58126.0,0.05136875]
[1723745529993,0.3608,58127.0,58124.0,0.05137243]
[1723745530185,0.3608,58127.0,58112.0,0.08558536]
[1723745530186,0.085998,58126.0,58121.0,0.05137243]
[1723745530384,0.086006,58121.0,58120.0,0.05137243]
[1723745530582,0.446805,58122.0,58117.0,0.05137243]
[1723745530792,0.3608,58122.0,58113.0,0.05137243]
[1723745530993,0.3608,58122.0,58114.0,0.05137243]
[1723745531184,0.086006,58121.0,58116.0,0.086012]
[1723745531498,0.00025793,58126.0,58116.0,0.13738543]
[1723745531499,0.3608,58118.0,58116.0,0.13738543]
[1723745531701,0.086012,58117.0,58114.0,0.05137243]
[1723745531892,0.086013,58116.0,58114.0,0.05137243]
[1723745532190,0.3608,58117.0,58113.0,0.05137243]
[1723745532397,0.446812,58117.0,58113.0,0.086017]
[1723745532590,0.3608,58117.0,58112.0,0.05137243]
[1723745532797,0.3608,58117.0,58109.0,0.086023]
[1723745532798,0.3608,58117.0,58111.0,0.05137243]
[1723745532993,0.3608,58112.0,58108.0,0.05137243]
[1723745533294,0.3608,58112.0,58105.0,0.086029]
[1723745533895,0.3608,58112.0,58107.0,0.086026]
[1723745534390,0.3608,58112.0,58108.0,0.086025]
[1723745534589,0.3608,58112.0,58104.0,0.3608]
[1723745534788,0.001,58116.0,58115.0,0.086015]
[1723745535099,0.001,58116.0,58112.0,0.05137243]
[1723745535391,0.086006,58121.0,58111.0,0.3608]
[1723745535392,0.086018,58113.0,58111.0,0.3608]
[1723745535692,0.3608,58112.0,58101.0,0.00019049]
[1723745535890,0.086028,58107.0,58101.0,0.08622549]
[1723745536292,0.3608,58112.0,58101.0,0.00019049]
[1723745536590,0.446834,58102.0,58101.0,0.00019049]
[1723745536795,0.086044,58095.0,58094.0,0.3608]
[1723745536994,0.3608,58097.0,58084.0,0.05137243]
[1723745537292,0.3608,58097.0,58081.0,0.3608]
[1723745537500,0.086057,58087.0,58081.0,0.3608]
[1723745537795,0.086057,58087.0,58074.0,0.81598]
[1723745537796,0.446862,58083.0,58074.0,0.00088]
[1723745537998,0.446862,58083.0,58072.0,0.17323232]
[1723745538305,1.27732,58083.0,58072.0,0.17323232]
[1723745538495,0.3608,58083.0,58072.0,0.17323232]
[1723745539085,0.16043431,58082.0,58072.0,0.17323232]
[1723745539296,0.3608,58083.0,58072.0,0.17323232]
[1723745539488,0.00025816,58083.0,58072.0,0.17323232]
[1723745539691,0.00125816,58083.0,58072.0,0.17323232]
[1723745539895,0.00125816,58083.0,58082.0,0.3608]
[1723745540099,0.00019049,58086.0,58082.0,0.3608]
[1723745540396,0.00019049,58086.0,58077.0,0.08607]
[1723745540600,0.36099049,58086.0,58076.0,0.3608]
[1723745540987,0.086064,58082.0,58076.0,0.3608]
[1723745541196,0.086059,58085.0,58076.0,0.3608]
[1723745541391,0.00019049,58086.0,58076.0,0.3608]
[1723745541791,0.086059,58085.0,58076.0,0.3608]
[1723745541991,0.3618,58083.0,58076.0,0.3608]
[1723745542192,0.3618,58083.0,58075.0,0.00025816]
[1723745542387,0.086065,58081.0,58075.0,0.00025816]
[1723745542593,0.002668,58082.0,58075.0,0.00025816]
[1723745542898,0.086068,58079.0,58075.0,0.00025816]
[1723745543194,0.3618,58083.0,58075.0,0.00025816]
[1723745543398,0.086064,58082.0,58075.0,0.00025816]
[1723745543598,0.001,58083.0,58075.0,0.00025816]
[1723745543790,0.3608,58077.0,58075.0,0.00025816]
[1723745543990,0.086067,58080.0,58075.0,0.00025816]
[1723745544199,0.3608,58077.0,58072.0,0.17323232]
[1723745544400,0.086076,58074.0,58072.0,0.17323232]
[1723745544616,0.00014206,58076.0,58072.0,0.17323232]
[1723745545105,0.086076,58074.0,58072.0,0.17323232]
[1723745545308,0.446876,58074.0,58072.0,0.17323232]
[1723745545690,0.3608,58074.0,58072.0,0.17323232]
[1723745545892,0.8774,58074.0,58072.0,0.17323232]
[1723745546087,0.5166,58073.0,58072.0,0.17323232]
[1723745546892,0.447876,58074.0,58072.0,0.17323232]
[1723745547309,0.964476,58074.0,58072.0,0.17323232]
[1723745547597,0.68503969,58073.0,58072.0,0.16268936]
[1723745548199,1.08503969,58073.0,58072.0,0.16268936]
[1723745548406,0.68503969,58073.0,58072.0,0.16268936]
[1723745548597,1.08503969,58073.0,58062.0,0.17070707]
[1723745548901,0.446891,58064.0,58062.0,0.17070707]
[1723745549108,0.51682858,58063.0,58062.0,0.17070707]
[1723745549294,0.53462274,58063.0,58062.0,0.17070707]
[1723745549494,0.93462274,58063.0,58062.0,0.05444207]
[1723745549689,0.93462274,58063.0,58056.0,0.0012]
[1723745549690,0.0861,58057.0,58056.0,0.0012]
[1723745549897,0.8469,58057.0,58056.0,0.0012]
[1723745550101,1.36362,58057.0,58056.0,0.0012]
[1723745550309,0.00014858,58063.0,58056.0,0.0012]
[1723745551001,0.19246325,58062.0,58052.0,0.14752809]
[1723745551199,0.086102,58056.0,58052.0,0.14752809]
[1723745551405,0.3608,58059.0,58052.0,0.14752809]
[1723745551804,0.086106,58054.0,58052.0,0.14752809]
[1723745552008,0.00013367,58053.0,58052.0,0.14752809]
[1723745552193,0.00013367,58053.0,58036.0,0.00943062]
[1723745552194,0.172242,58043.0,58036.0,0.00943062]
[1723745552395,0.17226,58037.0,58036.0,0.00943062]
[1723745552603,0.93306,58037.0,58036.0,0.00943062]
[1723745552799,0.086136,58033.0,58017.0,0.3608]
[1723745552996,0.086135,58034.0,58019.0,0.086157]
[1723745553212,0.086146,58026.0,58012.0,0.1580808]
[1723745553395,0.7216,58014.0,57982.0,0.15050505]
[1723745553598,1.60397264,58033.0,57982.0,0.51130505]
[1723745553599,0.3608,57993.0,57982.0,0.51130505]
[1723745553796,0.3608,57998.0,57985.0,0.3608]
[1723745553995,0.3608,57998.0,57982.0,0.15050505]
[1723745553996,0.08621,57984.0,57982.0,0.15050505]
[1723745554192,0.36100941,57983.0,57982.0,0.15050505]
[1723745554802,0.00020941,57983.0,57982.0,0.15050505]
[1723745555002,0.00020941,57983.0,57982.0,1.06790505]
[1723745555193,0.00020941,57983.0,57982.0,0.15050505]
[1723745555194,0.36100941,57983.0,57982.0,0.15050505]
[1723745555402,0.00020941,57983.0,57982.0,0.66790505]
[1723745555999,0.00020941,57983.0,57982.0,1.06790505]
[1723745557903,0.35109863,58002.0,58000.0,0.086185]
[1723745558305,0.3608,58008.0,58002.0,0.086181]
[1723745558503,0.3608,58012.0,58001.0,0.51724]
[1723745558814,0.3608,58012.0,57985.0,0.3608]
[1723745558815,0.7216,58002.0,57982.0,0.15050505]
[1723745559111,0.096168,58012.0,57982.0,0.15050505]
[1723745559112,0.3608,57983.0,57982.0,0.15050505]
[1723745559307,0.3609368,57983.0,57982.0,0.15029564]
[1723745560407,1.2783368,57983.0,57982.0,0.05883464]
[1723745560617,1.53860907,57983.0,57982.0,0.05883464]
[1723745560802,1.13860907,57983.0,57982.0,0.05883464]
[1723745561004,1.53860907,57983.0,57982.0,0.05883464]
[1723745561215,1.53860907,57983.0,57978.0,4e-05]
[1723745561216,0.689824,57982.0,57981.0,6.4e-07]
[1723745561512,0.689824,57982.0,57972.0,0.05200505]
[1723745561513,0.17245,57973.0,57972.0,0.05200505]
[1723745561714,1.1424,57973.0,57952.0,0.14292929]
[1723745561912,0.3608,57953.0,57952.0,0.14292929]
[1723745562221,0.44721858,57953.0,57952.0,0.14292929]
[1723745562420,1.70316944,57953.0,57922.0,0.13535353]
[1723745562718,0.89417,57933.0,57922.0,0.13535353]
[1723745562918,0.7217652,57933.0,57922.0,0.13535353]
[1723745563117,0.3609652,57933.0,57927.0,0.00890341]
[1723745563314,0.3608,57928.0,57927.0,0.00890341]
[1723745563707,0.36099695,57928.0,57927.0,0.00890341]
[1723745564313,1.63966354,57928.0,57927.0,0.00890341]
[1723745565021,0.4471,57923.0,57922.0,0.00311353]
[1723745565211,0.086315,57913.0,57902.0,0.13030303]
[1723745565515,0.82595895,57913.0,57902.0,0.13030303]
[1723745565815,0.7217572,57913.0,57911.0,0.086317]
[1723745566206,0.7217572,57913.0,57902.0,0.13030303]
[1723745566207,1.6397972,57913.0,57902.0,0.13030303]
[1723745566512,1.89911718,57913.0,57902.0,0.13030303]
[1723745566704,0.98107718,57913.0,57911.0,0.086317]
[1723745566913,0.0001572,57913.0,57911.0,0.086317]
[1723745567124,0.0001572,57913.0,57912.0,0.65086828]
[1723745567308,0.2608,57939.0,57913.0,0.518]
[1723745567309,0.3608,57930.0,57913.0,0.518]
[1723745567608,0.3608,57923.0,57921.0,0.086301]
[1723745567817,0.3608,57929.0,57928.0,0.086292]
[1723745568006,0.36288001,57938.0,57922.0,0.87872]
[1723745568206,0.3608,57938.0,57922.0,0.3608]
[1723745568406,0.3608,57931.0,57930.0,0.086289]
[1723745568805,0.00011991,57937.0,57930.0,0.91788]
[1723745569019,0.00011991,57937.0,57912.0,0.13282828]
[1723745569020,0.61871957,57931.0,57912.0,0.13282828]
[1723745569313,0.36091991,57930.0,57912.0,0.49362828]
[1723745569521,0.36091991,57930.0,57918.0,0.3608]
[1723745569818,0.00011991,57930.0,57928.0,0.086292]
[1723745570019,0.00011991,57930.0,57923.0,0.086299]
[1723745570220,0.00011991,57930.0,57916.0,0.00025888]
[1723745570221,0.3608,57926.0,57916.0,0.08656888]
[1723745570420,0.3608,57919.0,57918.0,0.086307]
[1723745570722,0.3608,57926.0,57918.0,0.51796]
[1723745571016,0.3608,57926.0,57925.0,0.086297]
[1723745571219,0.3608,57949.0,57935.0,0.02592]
[1723745571436,0.086191,57997.0,57965.0,0.086237]
[1723745571608,0.3608,58007.0,57992.0,0.3608]
[1723745571821,0.3608,58005.0,57992.0,0.3608]
[1723745572011,0.3608,58020.0,57992.0,0.3608]
[1723745572012,0.3608,58013.0,57998.0,0.3608]
[1723745572217,0.3608,58013.0,58004.0,0.3608]
[1723745572405,0.086187,57999.0,57989.0,0.3608]
[1723745572616,0.086187,57999.0,57969.0,0.00012378]
[1723745572617,0.3608,57997.0,57982.0,0.3608]
[1723745572910,0.3608,58000.0,57980.0,0.3608]
[1723745573111,0.3608,57994.0,57983.0,0.3608]
[1723745573313,0.05880963,57999.0,57983.0,0.3608]
[1723745573517,0.3608,58001.0,57988.0,0.3608]
[1723745573717,0.086184,58001.0,57988.0,0.3608]
[1723745574014,0.086184,58001.0,57969.0,0.00012378]
[1723745574015,0.05880963,57998.0,57996.0,0.086191]
[1723745574221,0.3608,58000.0,57985.0,0.3608]
[1723745574416,0.3608,58000.0,57984.0,0.00025861]
[1723745574417,0.3608,57994.0,57984.0,0.00025861]
[1723745574725,0.086178,58005.0,57991.0,0.3608]
[1723745574912,0.086178,58005.0,57991.0,0.446997]
[1723745575116,0.3608,58001.0,57991.0,0.3608]
[1723745575311,0.3608,58001.0,57969.0,0.00012378]
[1723745575312,0.08623,57970.0,57969.0,0.00012378]
[1723745575611,0.08623,57970.0,57933.0,0.3117]
[1723745575612,0.086242,57962.0,57946.0,0.447065]
[1723745575820,0.086247,57959.0,57946.0,0.447065]
[1723745576012,0.086247,57959.0,57947.0,0.086263]
[1723745576209,0.3608,57964.0,57955.0,0.3608]
[1723745576210,0.086239,57964.0,57955.0,0.3608]
[1723745576513,0.00012378,57963.0,57962.0,0.3608]
[1723745577017,0.3608,57978.0,57962.0,1.42836]
[1723745577323,0.3608,57983.0,57973.0,0.3608]
[1723745577514,0.94644001,58000.0,57986.0,0.086205]
[1723745577515,0.3608,57996.0,57986.0,0.086205]
[1723745577714,0.3608,57996.0,57990.0,0.086199]
[1723745577919,0.3608,57996.0,57980.0,0.3608]
[1723745578125,0.3608,57996.0,57980.0,0.5008]
[1723745578331,0.3608,58006.0,57995.0,0.3608]
[1723745578621,0.3608,58032.0,58005.0,0.3608]
[1723745578827,0.086153,58022.0,58005.0,0.3608]
[1723745579214,0.3608,58027.0,58010.0,0.3608]
[1723745579518,0.3608,58032.0,58019.0,0.3608]
[1723745579519,0.26002341,58026.0,58019.0,0.3608]
[1723745579827,0.3608,58032.0,58019.0,0.3608]
[1723745579828,0.00025861,58024.0,58019.0,0.3608]
[1723745580022,0.00025861,58024.0,58021.0,0.3608]
[1723745580431,0.00025861,58024.0,58023.0,0.086151]
[1723745580923,0.00025861,58024.0,58023.0,0.963991]
[1723745581116,0.00025861,58024.0,58023.0,0.603191]
[1723745581327,0.3608,58049.0,58031.0,0.086138]
[1723745581633,0.3608,58049.0,58034.0,0.086134]
[1723745581924,0.3608,58049.0,58033.0,0.3608]
[1723745581925,0.08612,58044.0,58041.0,0.30910433]
[1723745582115,0.23965312,58048.0,58033.0,0.3608]
[1723745582319,0.3608,58049.0,58033.0,0.3608]
[1723745582523,0.22629313,58047.0,58038.0,0.3608]
[1723745583336,0.00025861,58046.0,58038.0,0.3608]
[1723745583831,0.00025861,58046.0,58045.0,0.3608]
[1723745584030,0.36288001,58059.0,58045.0,0.3608]
[1723745584031,0.3608,58068.0,58051.0,0.086109]
[1723745584224,0.3608,58068.0,58039.0,0.51688]
[1723745584225,0.3608,58068.0,58059.0,0.446896]
[1723745584725,0.3608,58068.0,58059.0,0.3608]
[1723745584931,0.086088,58066.0,58059.0,0.3608]
[1723745585422,0.3608,58068.0,58059.0,0.3608]
[1723745585629,0.3608,58080.0,58065.0,0.3608]
[1723745585824,0.3608,58080.0,58076.0,0.086072]
[1723745586020,0.3608,58092.0,58077.0,0.3608]
[1723745586326,0.086046,58094.0,58084.0,0.3608]
[1723745586327,0.11233053,58085.0,58084.0,0.3608]
[1723745586530,0.11236057,58098.0,58085.0,0.51648]
[1723745586740,0.08026923,58086.0,58085.0,1.08644]
[1723745587032,0.15469406,58097.0,58085.0,1.08644]
[1723745587033,0.08028125,58092.0,58086.0,0.51644]
[1723745587219,0.06418617,58095.0,58090.0,0.3608]
[1723745587415,1.9e-07,58102.0,58100.0,0.086037]
[1723745587621,0.3608,58116.0,58101.0,0.3608]
[1723745587622,0.04802543,58109.0,58101.0,0.3608]
[1723745587826,0.42498617,58116.0,58113.0,0.086017]
[1723745588052,0.04804066,58120.0,58116.0,0.086013]
[1723745588227,0.3608,58120.0,58103.0,0.086031]
[1723745588419,0.04800771,58120.0,58115.0,0.3608]
[1723745588620,0.04800771,58123.0,58115.0,0.3608]
[1723745588826,0.04800771,58125.0,58115.0,0.3608]
[1723745589029,0.04800771,58126.0,58115.0,0.3608]
[1723745589224,0.086006,58121.0,58115.0,0.3608]
[1723745589430,0.3608,58120.0,58112.0,0.00025816]
[1723745589726,0.49482271,58115.0,58098.0,0.3608]
[1723745589928,0.49482271,58115.0,58091.0,0.3608]
[1723745589929,0.3608,58115.0,58091.0,0.3608]
[1723745590121,0.086031,58104.0,58091.0,0.3608]
[1723745590327,0.3608,58110.0,58096.0,0.3608]
[1723745590527,0.09633247,58127.0,58096.0,0.3608]
[1723745590528,0.3608,58105.0,58096.0,0.3608]
[1723745590925,0.3608,58116.0,58096.0,0.3608]
[1723745591130,0.086023,58110.0,58096.0,0.3608]
[1723745591323,0.3608,58116.0,58097.0,0.00025816]
[1723745591523,0.3608,58105.0,58097.0,0.00025816]
[1723745591735,0.086039,58099.0,58097.0,0.00025816]
[1723745592043,0.00533246,58098.0,58072.0,0.3608]
[1723745592231,0.00533246,58098.0,58055.0,0.00021603]
[1723745592232,0.086073,58076.0,58062.0,0.086092]
[1723745592423,0.086073,58076.0,58059.0,0.3608]
[1723745592631,0.3608,58081.0,58064.0,0.3608]
[1723745592833,0.3608,58074.0,58059.0,0.3608]
[1723745593038,0.086101,58057.0,58055.0,0.00021603]
[1723745593229,0.3608,58060.0,58035.0,0.3608]
[1723745593230,0.3608,58056.0,58035.0,0.3608]
[1723745593440,0.086123,58042.0,58035.0,0.3608]
[1723745593727,0.3608,58046.0,58035.0,0.3608]
[1723745594037,0.3608,58084.0,58045.0,0.6216]
[1723745594226,0.00212001,58093.0,58050.0,0.3608]
[1723745594227,0.086089,58065.0,58050.0,0.3608]
[1723745594428,0.086101,58057.0,58050.0,0.3608]
[1723745594631,0.3608,58063.0,58050.0,0.3608]
[1723745595336,0.3608,58063.0,58035.0,0.2608]
[1723745595337,0.3608,58051.0,58035.0,0.00025846]
[1723745595531,0.086131,58037.0,58035.0,0.00025846]
[1723745595827,0.00015024,58036.0,58035.0,0.00025846]
[1723745596229,0.00015024,58036.0,58017.0,0.08616]
[1723745596538,0.3608,58024.0,58016.0,0.3608]
[1723745596736,0.3608,58024.0,58022.0,0.086152]
[1723745596939,0.3608,58045.0,58023.0,0.6216]
[1723745597235,0.00019597,58044.0,58036.0,0.3608]
[1723745597440,0.00025846,58041.0,58039.0,0.086127]
[1723745597624,0.00025846,58041.0,58039.0,0.486127]
[1723745597830,3e-07,58041.0,58040.0,0.87768]
[1723745598232,3e-07,58041.0,58040.0,1.36154591]
[1723745598444,0.3608,58059.0,58040.0,1.44768]
[1723745598632,0.3608,58065.0,58057.0,0.086099]
[1723745598834,0.08613409,58064.0,58055.0,0.3608]
[1723745599147,0.48688001,58085.0,58063.0,0.3608]
[1723745599148,0.3608,58084.0,58063.0,0.3608]
[1723745599439,0.08613409,58080.0,58074.0,0.3608]
[1723745599642,0.00016896,58083.0,58080.0,0.3608]
[1723745599844,0.00016896,58083.0,58081.0,0.086064]
[1723745600034,0.00016896,58083.0,58081.0,0.51652]
[1723745600238,0.00016896,58083.0,58082.0,0.602583]
[1723745600434,0.00016896,58083.0,58080.0,0.3608]
[1723745600739,0.00016896,58083.0,58074.0,0.3608]
[1723745600740,0.08613409,58081.0,58069.0,0.3608]
[1723745600933,0.00016896,58083.0,58068.0,0.00025846]
[1723745600934,0.08613409,58069.0,58068.0,0.00025846]
[1723745601131,0.08631059,58069.0,58068.0,0.00025846]
[1723745601834,0.0001765,58069.0,58068.0,1.27769846]
[1723745602528,0.00025846,58088.0,58068.0,1.27769846]
[1723745602733,0.00025846,58088.0,58081.0,0.3608]
[1723745603044,0.3608,58097.0,58086.0,0.3608]
[1723745603338,0.08613409,58093.0,58081.0,0.36168]
[1723745603544,0.08613409,58095.0,58089.0,0.3608]
[1723745603842,0.00025846,58090.0,58089.0,0.3608]
[1723745604429,0.00025846,58090.0,58089.0,1.27724]
[1723745604632,0.08639255,58090.0,58086.0,0.3608]
[1723745604833,0.00025846,58090.0,58088.0,0.086054]
[1723745605129,0.00025846,58090.0,58088.0,0.446854]
[1723745605334,0.00025846,58090.0,58089.0,0.51644]
[1723745605335,4.6e-07,58090.0,58089.0,0.51644]
[1723745605641,0.3608,58115.0,58098.0,0.086039]
[1723745605943,0.08613409,58104.0,58095.0,0.3608]
[1723745606132,0.3608,58109.0,58095.0,0.3608]
[1723745606334,0.08613409,58107.0,58095.0,0.446844]
[1723745606536,0.08613409,58107.0,58097.0,0.086041]
[1723745606739,0.08613409,58099.0,58088.0,0.3608]
[1723745606949,0.08613409,58093.0,58088.0,0.3608]
[1723745607250,0.17218209,58093.0,58088.0,0.3608]
[1723745607442,0.08613409,58093.0,58088.0,0.3608]
[1723745607636,0.086031,58104.0,58088.0,1.27724]
[1723745607841,0.08613409,58100.0,58088.0,0.3608]
[1723745608043,0.08604,58098.0,58088.0,0.3608]
[1723745608242,0.08613409,58100.0,58096.0,0.3608]
[1723745608439,0.08613409,58097.0,58093.0,0.3608]
[1723745608651,0.3608,58096.0,58085.0,0.00025821]
[1723745608950,0.3608,58096.0,58089.0,0.3608]
[1723745609343,0.3608,58096.0,58093.0,0.086046]
[1723745609549,0.08613409,58094.0,58089.0,0.3608]
[1723745609847,0.3608,58096.0,58089.0,0.3608]
[1723745610042,0.08613409,58094.0,58089.0,0.3608]
[1723745610238,0.3608,58096.0,58074.0,0.3608]
[1723745610239,0.44693409,58090.0,58074.0,0.3608]
[1723745610449,0.44693409,58090.0,58068.0,0.3608]
[1723745610450,0.08613409,58086.0,58068.0,0.3608]
[1723745610654,0.446865,58081.0,58068.0,0.3608]
[1723745610947,0.00177801,58095.0,58077.0,0.3608]
[1723745610948,0.3608,58095.0,58077.0,0.3608]
[1723745611250,0.17219109,58087.0,58077.0,0.3608]
[1723745611436,0.08613409,58087.0,58081.0,0.086064]
[1723745611643,0.3608,58095.0,58082.0,0.446863]
[1723745611949,0.08613409,58092.0,58082.0,0.3608]
[1723745612165,0.3608,58095.0,58090.0,0.3608]
[1723745612359,0.3608,58095.0,58093.0,0.086047]
[1723745612652,0.3608,58107.0,58097.0,0.08604]
[1723745612948,0.08613409,58106.0,58102.0,0.086033]
[1723745613246,0.3608,58107.0,58104.0,0.08603]
[1723745613445,0.3608,58118.0,58106.0,0.3608]
[1723745613755,0.08613409,58114.0,58106.0,0.3608]
[1723745613953,0.08613409,58116.0,58112.0,0.3608]
[1723745614257,0.08613409,58116.0,58100.0,0.6216]
[1723745614439,0.08613409,58106.0,58100.0,0.3608]
[1723745614641,0.3608,58110.0,58106.0,0.00025821]
[1723745614948,0.086025,58108.0,58106.0,0.00025821]
[1723745615156,0.3608,58110.0,58106.0,0.00025821]
[1723745615344,0.44693409,58110.0,58106.0,0.00025821]
[1723745615545,0.08613409,58107.0,58106.0,0.00025821]
[1723745615747,0.3608,58110.0,58106.0,0.51653821]
[1723745615942,0.3608,58110.0,58107.0,0.51628]
[1723745616250,0.00025821,58116.0,58108.0,0.51628]
[1723745616448,0.00025821,58116.0,58106.0,0.40025821]
[1723745616449,0.0863923,58116.0,58106.0,0.00025821]
[1723745616751,0.0863923,58116.0,58114.0,0.3608]
[1723745616752,0.00025821,58116.0,58114.0,0.3608]
[1723745616951,0.00025821,58116.0,58114.0,0.7608]
[1723745617155,0.00025821,58116.0,58115.0,0.5162]
[1723745617649,0.00025821,58116.0,58115.0,0.9162]
[1723745617849,0.00025821,58116.0,58106.0,0.00025821]
[1723745617850,0.0863923,58116.0,58106.0,0.00025821]
[1723745618048,0.00025821,58116.0,58111.0,0.086019]
[1723745618358,0.00025821,58116.0,58115.0,0.3608]
[1723745618742,0.00025821,58116.0,58115.0,1.277]
[1723745618949,1e-08,58116.0,58115.0,1.277]
[1723745619744,1e-08,58116.0,58115.0,0.3608]
[1723745620241,0.0861341,58116.0,58110.0,0.3608]
[1723745620454,0.08613409,58115.0,58108.0,0.3608]
[1723745620648,1e-08,58116.0,58114.0,0.446815]
[1723745621149,1e-08,58116.0,58115.0,0.5162]
[1723745621344,1e-08,58116.0,58115.0,0.9162]
[1723745622344,1e-08,58116.0,58115.0,4.6862]
[1723745623367,1e-08,58116.0,58115.0,4.8562]
[1723745623658,0.06405421,58119.0,58118.0,0.08601]
[1723745623955,0.08122248,58121.0,58120.0,0.086007]
[1723745624157,0.02786955,58121.0,58120.0,0.086007]
[1723745624353,0.02786955,58121.0,58120.0,0.486007]
[1723745624545,0.02786955,58121.0,58118.0,0.62252]
[1723745624741,0.08119491,58119.0,58118.0,1.10761]
[1723745624942,0.08119491,58123.0,58119.0,0.51616]
[1723745625146,0.08120492,58128.0,58125.0,0.086]
[1723745625344,0.08123103,58130.0,58129.0,0.085994]
[1723745625558,0.0812331,58130.0,58129.0,0.085994]
[1723745625753,0.0812331,58130.0,58129.0,1.002074]
[1723745626149,0.08123291,58130.0,58129.0,1.002074]
[1723745626361,0.02786577,58130.0,58129.0,0.91608]
[1723745626657,0.02786577,58130.0,58129.0,1.002074]
[1723745627245,0.02786577,58130.0,58129.0,0.085994]
[1723745627557,0.09522716,58130.0,58129.0,0.085994]
[1723745627952,0.09522716,58130.0,58129.0,0.485994]
[1723745628850,0.02786577,58130.0,58129.0,1.002074]
[1723745629451,0.02786577,58130.0,58129.0,0.085994]
[1723745629658,0.51683729,58130.0,58127.0,0.36168]
[1723745629849,0.53555211,58128.0,58127.0,0.3608]
[1723745630155,0.59935086,58128.0,58127.0,0.3608]
[1723745630454,0.06742708,58128.0,58127.0,0.3608]
[1723745630655,0.00025821,58135.0,58127.0,0.3608]
[1723745630846,0.085988,58133.0,58132.0,0.3608]
[1723745631054,0.085995,58128.0,58127.0,0.3608]
[1723745631255,0.78234444,58128.0,58108.0,0.3608]
[1723745631577,0.78234444,58128.0,58099.0,0.3608]
[1723745631578,0.42128623,58116.0,58106.0,0.3608]
[1723745631759,0.42128623,58112.0,58106.0,0.3608]
[1723745632149,0.42128623,58107.0,58106.0,0.3608]
[1723745632358,0.50731223,58107.0,58106.0,0.3608]
[1723745632561,0.42128623,58107.0,58106.0,0.3608]
[1723745633261,0.00025821,58112.0,58111.0,0.08602]
[1723745633461,0.00025821,58112.0,58111.0,1.10762]
[1723745633764,0.00025821,58112.0,58111.0,1.62386]
[1723745634060,0.42154444,58112.0,58111.0,0.3608]
[1723745634360,0.42154444,58112.0,58111.0,0.44682]
[1723745634554,0.00025821,58112.0,58111.0,0.44682]
[1723745634756,0.50756344,58112.0,58111.0,0.3608]
[1723745634955,0.086026,58107.0,58106.0,0.3608]
[1723745635158,0.42128623,58107.0,58106.0,0.3608]
[1723745635465,0.50731223,58107.0,58106.0,0.3608]
[1723745635861,0.50731223,58107.0,58090.0,0.08626045]
[1723745635862,0.42128623,58102.0,58090.0,0.08626045]
[1723745636078,0.50733623,58091.0,58090.0,0.00020945]
[1723745636666,0.42128623,58091.0,58090.0,0.00020945]
[1723745637166,0.3608,58099.0,58094.0,0.086045]
[1723745637167,0.00025821,58096.0,58094.0,0.086045]
[1723745637362,0.42128623,58094.0,58090.0,0.36100945]
[1723745637552,0.42128623,58094.0,58090.0,0.44706145]
[1723745637757,0.42128623,58094.0,58067.0,0.08558536]
[1723745637758,0.086052,58090.0,58073.0,0.05027756]
[1723745638055,0.3608,58074.0,58064.0,0.3608]
[1723745638761,0.42128623,58072.0,58064.0,0.41107756]
[1723745638965,0.42128623,58071.0,58064.0,0.3608]
[1723745639450,0.3608,58069.0,58064.0,0.086089]
[1723745639656,0.42128623,58068.0,58062.0,0.346893]
[1723745639855,0.42128623,58068.0,58062.0,0.2608]
[1723745640062,0.42128623,58068.0,58067.0,0.086086]
[1723745640359,0.0001338,58073.0,58072.0,0.086078]
[1723745640562,0.0001338,58073.0,58072.0,0.346878]
[1723745640755,0.0001338,58073.0,58068.0,0.05027756]
[1723745640953,0.0001338,58073.0,58060.0,0.31107756]
[1723745640954,0.42128623,58066.0,58060.0,0.31107756]
[1723745641156,0.3608,58062.0,58060.0,0.2608]
[1723745641362,0.3608,58062.0,58057.0,0.36168]
[1723745641363,0.3608,58062.0,58057.0,0.3608]
[1723745641672,0.3608,58062.0,58052.0,0.05027756]
[1723745641673,0.42128623,58058.0,58052.0,0.05027756]
[1723745641851,0.42128623,58056.0,58055.0,0.086103]
[1723745642053,0.36096078,58061.0,58050.0,0.2608]
[1723745642054,0.42128623,58057.0,58050.0,0.2608]
[1723745642266,0.42128623,58057.0,58056.0,0.086102]
[1723745642456,0.00016078,58061.0,58060.0,0.086096]
[1723745642657,0.00016078,58061.0,58060.0,0.746896]
[1723745642859,0.00016078,58061.0,58060.0,0.346896]
[1723745643457,0.42144701,58061.0,58060.0,0.346896]
[1723745643860,0.00016078,58061.0,58060.0,0.346896]
[1723745644061,0.00016078,58061.0,58060.0,0.746896]
[1723745644364,0.00025821,58066.0,58060.0,0.2608]
[1723745644552,0.00025821,58066.0,58053.0,0.00088]
[1723745644553,0.42128623,58061.0,58053.0,0.00088]
[1723745644752,0.42128623,58061.0,58046.0,0.06777022]
[1723745644753,0.78208623,58054.0,58041.0,0.26100688]
[1723745644965,0.78208623,58042.0,58041.0,0.00020688]